[Event "Live Chess"]
[Site "Chess.com"]
[Date "2023.05.20"]
[Round "-"]
[White "JanMur7"]
[Black "misha464"]
[Result "1-0"]
[WhiteElo "1982"]
[BlackElo "761"]
[TimeControl "300"]
[EndTime "10:23:22 PDT"]
[Termination "JanMur7 won by resignation"]

1. e4 {[%clk 0:04:58.2]} 1... e5 {[%clk 0:04:59.3]} 2. Nf3 {[%clk 0:04:57.2]}
2... Nc6 {[%clk 0:04:58.4]} 3. Nc3 {[%clk 0:04:55.9]} 3... Bb4 {[%clk
0:04:56.5]} 4. Nd5 {[%clk 0:04:54.4]} 4... Nf6 {[%clk 0:04:52.6]} 5. Nxb4 {[%clk
0:04:53]} 5... Qe7 {[%clk 0:04:50.8]} 6. Nxc6 {[%clk 0:04:51.6]} 6... dxc6
{[%clk 0:04:49.8]} 7. Bc4 {[%clk 0:04:50.8]} 7... O-O {[%clk 0:04:48.6]} 8. O-O
{[%clk 0:04:50.1]} 8... Qc5 {[%clk 0:04:46]} 9. d3 {[%clk 0:04:48.9]} 9... b5
{[%clk 0:04:44.1]} 10. Be3 {[%clk 0:04:46.8]} 10... Qd6 {[%clk 0:04:40]} 11. Bb3
{[%clk 0:04:42.8]} 11... a5 {[%clk 0:04:38.3]} 12. a4 {[%clk 0:04:40.8]} 12...
b4 {[%clk 0:04:34.3]} 13. d4 {[%clk 0:04:34.5]} 13... exd4 {[%clk 0:04:32.7]}
14. Qxd4 {[%clk 0:04:32.7]} 14... Qe7 {[%clk 0:04:27.1]} 15. e5 {[%clk
0:04:25.4]} 15... Nd5 {[%clk 0:04:23.1]} 16. Bxd5 {[%clk 0:04:22.4]} 16... cxd5
{[%clk 0:04:22.3]} 17. Qxd5 {[%clk 0:04:21.4]} 17... Ba6 {[%clk 0:04:18.8]} 18.
Rfe1 {[%clk 0:04:17.4]} 18... Rfd8 {[%clk 0:04:14.8]} 19. Qc5 {[%clk 0:04:15.8]}
19... Qe6 {[%clk 0:04:01.8]} 20. Rad1 {[%clk 0:04:10]} 20... Re8 {[%clk
0:03:56.4]} 21. Nd4 {[%clk 0:03:59.2]} 21... Qxe5 {[%clk 0:03:51.5]} 22. Qxe5
{[%clk 0:03:57.6]} 22... Rxe5 {[%clk 0:03:51.4]} 23. Nc6 {[%clk 0:03:53.8]}
23... Bb7 {[%clk 0:03:45.1]} 24. Nxe5 {[%clk 0:03:50.3]} 1-0

[Event "Live Chess"]
[Site "Chess.com"]
[Date "2023.05.20"]
[Round "-"]
[White "boilerboy1"]
[Black "Wlzard-1"]
[Result "0-1"]
[WhiteElo "1086"]
[BlackElo "960"]
[TimeControl "300"]
[EndTime "10:23:23 PDT"]
[Termination "Wlzard-1 won on time"]

1. e4 {[%clk 0:04:55.6]} 1... e5 {[%clk 0:04:51.6]} 2. Nf3 {[%clk 0:04:52.9]}
2... Nc6 {[%clk 0:04:48.3]} 3. Nc3 {[%clk 0:04:52.4]} 3... Nf6 {[%clk
0:04:46.7]} 4. Be2 {[%clk 0:04:50.2]} 4... g6 {[%clk 0:04:42.5]} 5. O-O {[%clk
0:04:48]} 5... Bg7 {[%clk 0:04:41.9]} 6. d3 {[%clk 0:04:42.6]} 6... O-O {[%clk
0:04:41]} 7. Bg5 {[%clk 0:04:40]} 7... b6 {[%clk 0:04:38.4]} 8. Re1 {[%clk
0:04:37.6]} 8... Bb7 {[%clk 0:04:37.2]} 9. Nd5 {[%clk 0:04:35]} 9... Rc8 {[%clk
0:04:27.5]} 10. c3 {[%clk 0:04:29.1]} 10... d6 {[%clk 0:04:22.3]} 11. h4 {[%clk
0:04:15.4]} 11... h5 {[%clk 0:04:13]} 12. a3 {[%clk 0:04:03]} 12... a6 {[%clk
0:03:51.1]} 13. b4 {[%clk 0:03:58]} 13... a5 {[%clk 0:03:47.7]} 14. b5 {[%clk
0:03:52.3]} 14... Na7 {[%clk 0:03:45.5]} 15. Nxf6+ {[%clk 0:03:49.3]} 15... Bxf6
{[%clk 0:03:43.3]} 16. Bxf6 {[%clk 0:03:47.7]} 16... Qxf6 {[%clk 0:03:41.3]} 17.
Ng5 {[%clk 0:03:45.7]} 17... Nxb5 {[%clk 0:03:31.8]} 18. Qc2 {[%clk 0:03:41.4]}
18... Kg7 {[%clk 0:03:26.7]} 19. Bf3 {[%clk 0:03:29.6]} 19... Qf4 {[%clk
0:03:21.5]} 20. c4 {[%clk 0:03:11.5]} 20... Nd4 {[%clk 0:03:16.7]} 21. Qd1
{[%clk 0:02:57.7]} 21... Qxh4 {[%clk 0:03:14.2]} 22. Nh3 {[%clk 0:02:44.5]}
22... Qf6 {[%clk 0:03:07.1]} 23. Re3 {[%clk 0:02:02.8]} 23... Ne6 {[%clk
0:02:55.9]} 24. Bxh5 {[%clk 0:01:58.9]} 24... gxh5 {[%clk 0:02:40.2]} 25. Qxh5
{[%clk 0:01:56.5]} 25... Rh8 {[%clk 0:02:20.3]} 26. Rg3+ {[%clk 0:01:54.2]}
26... Kf8 {[%clk 0:02:19]} 27. Qg4 {[%clk 0:01:33.4]} 27... Ke7 {[%clk
0:02:11.4]} 28. Ng5 {[%clk 0:01:07.3]} 28... Rcg8 {[%clk 0:01:53.3]} 0-1

[Event "Live Chess"]
[Site "Chess.com"]
[Date "2023.05.20"]
[Round "-"]
[White "PantherCal"]
[Black "domrobson"]
[Result "0-1"]
[WhiteElo "1858"]
[BlackElo "1729"]
[TimeControl "300"]
[EndTime "10:23:26 PDT"]
[Termination "domrobson won by resignation"]

1. e4 {[%clk 0:04:53.7]} 1... e5 {[%clk 0:04:59.3]} 2. Nf3 {[%clk 0:04:51.9]}
2... Nc6 {[%clk 0:04:57.7]} 3. Bb5 {[%clk 0:04:49.9]} 3... a6 {[%clk 0:04:55.7]}
4. Ba4 {[%clk 0:04:48.5]} 4... Nf6 {[%clk 0:04:54.4]} 5. O-O {[%clk 0:04:45]}
5... Nxe4 {[%clk 0:04:37.5]} 6. Re1 {[%clk 0:04:42.8]} 6... Nc5 {[%clk
0:04:35.5]} 7. Bxc6 {[%clk 0:04:37.5]} 7... dxc6 {[%clk 0:04:34.2]} 8. Nxe5
{[%clk 0:04:34.1]} 8... Be7 {[%clk 0:04:33.5]} 9. d4 {[%clk 0:04:30]} 9... Ne6
{[%clk 0:04:31.6]} 10. c3 {[%clk 0:04:27.8]} 10... O-O {[%clk 0:04:29.7]} 11.
Be3 {[%clk 0:04:26.2]} 11... Bf6 {[%clk 0:04:23.4]} 12. Nd2 {[%clk 0:04:22.6]}
12... c5 {[%clk 0:04:04.3]} 13. Ndf3 {[%clk 0:04:04.5]} 13... cxd4 {[%clk
0:03:58.7]} 14. cxd4 {[%clk 0:04:01.3]} 14... Qd5 {[%clk 0:03:30.6]} 15. Qd2
{[%clk 0:03:54.9]} 15... Rd8 {[%clk 0:03:27.8]} 16. Red1 {[%clk 0:03:51.3]}
16... c6 {[%clk 0:03:06.3]} 17. a3 {[%clk 0:03:46.8]} 17... Bd7 {[%clk
0:02:57.5]} 18. Rac1 {[%clk 0:03:45.4]} 18... Be8 {[%clk 0:02:56.2]} 19. b4
{[%clk 0:03:43.7]} 19... Rac8 {[%clk 0:02:46.4]} 20. Qb2 {[%clk 0:03:14]} 20...
c5 {[%clk 0:02:06.1]} 21. bxc5 {[%clk 0:03:06.4]} 21... Bxe5 {[%clk 0:02:03]}
22. Nxe5 {[%clk 0:03:02.2]} 22... Rxc5 {[%clk 0:01:49.9]} 23. Rxc5 {[%clk
0:02:44.2]} 23... Nxc5 {[%clk 0:01:44.4]} 24. Re1 {[%clk 0:02:33.5]} 24... Ne6
{[%clk 0:01:27.1]} 25. Qxb7 {[%clk 0:02:28.6]} 25... Qxb7 {[%clk 0:01:23.2]} 26.
g3 {[%clk 0:02:23.7]} 26... Nxd4 {[%clk 0:01:20]} 27. Bxd4 {[%clk 0:02:21.3]}
27... Rxd4 {[%clk 0:01:17.4]} 28. Nf3 {[%clk 0:02:02.9]} 28... Rd8 {[%clk
0:01:14.4]} 29. Ne5 {[%clk 0:02:00.9]} 29... f6 {[%clk 0:01:10.6]} 30. Nc4
{[%clk 0:01:54.9]} 30... Bb5 {[%clk 0:01:08.8]} 31. Ne3 {[%clk 0:01:51.9]} 31...
Re8 {[%clk 0:01:06.7]} 32. Rb1 {[%clk 0:01:50]} 32... Qe4 {[%clk 0:01:02.3]} 33.
Rc1 {[%clk 0:01:47.6]} 33... Bc6 {[%clk 0:00:57.5]} 34. Rxc6 {[%clk 0:01:35.9]}
34... Qxc6 {[%clk 0:00:55.5]} 35. Kf1 {[%clk 0:01:35.8]} 35... Rxe3 {[%clk
0:00:53.9]} 36. fxe3 {[%clk 0:01:33.9]} 36... Qf3+ {[%clk 0:00:53.6]} 37. Ke1
{[%clk 0:01:33.1]} 37... Qxe3+ {[%clk 0:00:53.5]} 38. Kd1 {[%clk 0:01:32.8]}
38... Qxa3 {[%clk 0:00:52.8]} 0-1

[Event "Live Chess"]
[Site "Chess.com"]
[Date "2023.05.20"]
[Round "-"]
[White "ClassyChameleon"]
[Black "MartynColebrook"]
[Result "1/2-1/2"]
[WhiteElo "1044"]
[BlackElo "1101"]
[TimeControl "300"]
[EndTime "10:23:28 PDT"]
[Termination "Game drawn by agreement"]

1. e4 {[%clk 0:04:59.2]} 1... d5 {[%clk 0:04:57.3]} 2. Nc3 {[%clk 0:04:53.7]}
2... d4 {[%clk 0:04:53.9]} 3. Nce2 {[%clk 0:04:46.6]} 3... e5 {[%clk 0:04:51.9]}
4. c3 {[%clk 0:04:45.5]} 4... c5 {[%clk 0:04:49.9]} 5. cxd4 {[%clk 0:04:41.9]}
5... cxd4 {[%clk 0:04:43]} 6. Nf3 {[%clk 0:04:37.3]} 6... Nc6 {[%clk 0:04:40.7]}
7. d3 {[%clk 0:04:34.3]} 7... Bb4+ {[%clk 0:04:32.5]} 8. Bd2 {[%clk 0:04:32.8]}
8... Bxd2+ {[%clk 0:04:30.4]} 9. Qxd2 {[%clk 0:04:32.1]} 9... Bg4 {[%clk
0:04:21.1]} 10. Ng3 {[%clk 0:04:16.4]} 10... Qf6 {[%clk 0:03:53]} 11. Be2 {[%clk
0:03:55.4]} 11... Nge7 {[%clk 0:03:40.1]} 12. O-O {[%clk 0:03:51.8]} 12... Ng6
{[%clk 0:03:36.3]} 13. h3 {[%clk 0:03:34.2]} 13... Bd7 {[%clk 0:03:27.8]} 14. b4
{[%clk 0:03:14.1]} 14... Nf4 {[%clk 0:03:23.5]} 15. b5 {[%clk 0:02:25.2]} 15...
Ne7 {[%clk 0:03:15.4]} 16. Qb4 {[%clk 0:02:19.7]} 16... h5 {[%clk 0:03:00.4]}
17. Bd1 {[%clk 0:02:12.4]} 17... Nxd3 {[%clk 0:02:51.9]} 18. Qc4 {[%clk
0:01:49.7]} 18... Nf4 {[%clk 0:02:42]} 19. Ba4 {[%clk 0:01:42.5]} 19... Rc8
{[%clk 0:02:38]} 20. Qb4 {[%clk 0:01:19.5]} 20... h4 {[%clk 0:02:20.2]} 21. Ne2
{[%clk 0:01:11.8]} 21... Nxe2+ {[%clk 0:02:13.4]} 22. Kh1 {[%clk 0:01:08.6]}
22... g5 {[%clk 0:02:06.1]} 23. b6 {[%clk 0:00:58]} 23... axb6 {[%clk
0:01:49.5]} 24. Bxd7+ {[%clk 0:00:55.4]} 24... Kxd7 {[%clk 0:01:46.9]} 25. Qb5+
{[%clk 0:00:52.5]} 25... Nc6 {[%clk 0:01:30.7]} 26. Qxe2 {[%clk 0:00:51.2]}
26... g4 {[%clk 0:01:19.9]} 27. Nd2 {[%clk 0:00:49]} 27... gxh3 {[%clk
0:01:07.2]} 28. Qg4+ {[%clk 0:00:45.2]} 28... Qe6 {[%clk 0:01:02.5]} 29. Qxh3
{[%clk 0:00:41.2]} 29... Qxh3+ {[%clk 0:01:00.8]} 30. gxh3 {[%clk 0:00:40.7]}
30... Rcg8 {[%clk 0:00:54.5]} 31. Nf3 {[%clk 0:00:36.9]} 31... Ke6 {[%clk
0:00:48.2]} 32. Rg1 {[%clk 0:00:33.6]} 32... Rxg1+ {[%clk 0:00:42.1]} 33. Rxg1
{[%clk 0:00:32.1]} 33... f5 {[%clk 0:00:18.6]} 34. Ng5+ {[%clk 0:00:25.4]} 34...
Kf6 {[%clk 0:00:15.7]} 1/2-1/2

[Event "Live Chess"]
[Site "Chess.com"]
[Date "2023.05.20"]
[Round "-"]
[White "siddu198"]
[Black "Tema1107"]
[Result "1-0"]
[WhiteElo "1640"]
[BlackElo "1965"]
[TimeControl "300"]
[EndTime "10:23:34 PDT"]
[Termination "siddu198 won on time"]

1. e4 {[%clk 0:04:55.4]} 1... c5 {[%clk 0:04:59.1]} 2. Nf3 {[%clk 0:04:52.5]}
2... d6 {[%clk 0:04:57.9]} 3. Nc3 {[%clk 0:04:51.2]} 3... Nf6 {[%clk 0:04:53.1]}
4. Bb5+ {[%clk 0:04:30.7]} 4... Bd7 {[%clk 0:04:51.2]} 5. d3 {[%clk 0:04:25.7]}
5... Bxb5 {[%clk 0:04:19.8]} 6. Nxb5 {[%clk 0:04:22.4]} 6... a6 {[%clk
0:04:19.2]} 7. Nc3 {[%clk 0:04:21.7]} 7... g6 {[%clk 0:04:17.7]} 8. Bg5 {[%clk
0:04:19.5]} 8... Bg7 {[%clk 0:04:16.1]} 9. O-O {[%clk 0:04:18.6]} 9... O-O
{[%clk 0:04:14.7]} 10. Nd2 {[%clk 0:04:12.9]} 10... Nc6 {[%clk 0:03:53.9]} 11.
Nf3 {[%clk 0:04:07.6]} 11... h6 {[%clk 0:03:51.9]} 12. Be3 {[%clk 0:04:04.2]}
12... Ng4 {[%clk 0:03:47.8]} 13. h3 {[%clk 0:04:02.1]} 13... Nxe3 {[%clk
0:03:18.3]} 14. fxe3 {[%clk 0:04:02]} 14... b5 {[%clk 0:03:06]} 15. Rb1 {[%clk
0:03:52.6]} 15... b4 {[%clk 0:02:26.7]} 16. Nd5 {[%clk 0:03:31.9]} 16... e6
{[%clk 0:02:24.8]} 17. Nf4 {[%clk 0:03:28.1]} 17... a5 {[%clk 0:02:23.8]} 18. d4
{[%clk 0:03:19.6]} 18... cxd4 {[%clk 0:02:00.3]} 19. exd4 {[%clk 0:03:19.5]}
19... Qb6 {[%clk 0:01:59]} 20. c3 {[%clk 0:02:31]} 20... Rab8 {[%clk 0:01:42.8]}
21. Qd2 {[%clk 0:01:59.8]} 21... bxc3 {[%clk 0:01:34.8]} 22. bxc3 {[%clk
0:01:59.7]} 22... Qxb1 {[%clk 0:01:33.8]} 23. Rxb1 {[%clk 0:01:58.2]} 23...
Rxb1+ {[%clk 0:01:33.7]} 24. Kh2 {[%clk 0:01:57.5]} 24... Rfb8 {[%clk
0:01:32.2]} 25. Qe3 {[%clk 0:01:51.1]} 25... R8b2 {[%clk 0:01:26.1]} 26. Nd3
{[%clk 0:01:40.4]} 26... Rxa2 {[%clk 0:01:22.4]} 27. Nd2 {[%clk 0:01:33.2]}
27... Rd1 {[%clk 0:01:15.7]} 28. Nf3 {[%clk 0:01:13.8]} 28... a4 {[%clk
0:01:05.1]} 29. Nf2 {[%clk 0:01:09.3]} 29... Rf1 {[%clk 0:00:57.1]} 30. Nd2
{[%clk 0:01:01.4]} 30... Rfa1 {[%clk 0:00:41.4]} 31. Nc4 {[%clk 0:00:54.7]}
31... a3 {[%clk 0:00:31.2]} 32. Nxd6 {[%clk 0:00:47]} 32... Bf8 {[%clk 0:00:14]}
33. e5 {[%clk 0:00:41]} 33... Rc2 {[%clk 0:00:07.8]} 34. Qf3 {[%clk 0:00:34]}
34... Nd8 {[%clk 0:00:02.9]} 35. Nfe4 {[%clk 0:00:25.8]} 35... a2 {[%clk
0:00:00.5]} 36. Nf6+ {[%clk 0:00:23.9]} 36... Kg7 {[%clk 0:00:00.4]} 37. Nh5+
{[%clk 0:00:18.5]} 37... Kh8 {[%clk 0:00:00.3]} 38. Qf6+ {[%clk 0:00:17]} 1-0

[Event "Live Chess"]
[Site "Chess.com"]
[Date "2023.05.20"]
[Round "-"]
[White "ACx04"]
[Black "martinsmartin63"]
[Result "0-1"]
[WhiteElo "431"]
[BlackElo "762"]
[TimeControl "300"]
[EndTime "10:23:36 PDT"]
[Termination "martinsmartin63 won by checkmate"]

1. e4 {[%clk 0:04:58.5]} 1... e5 {[%clk 0:04:56.7]} 2. Bc4 {[%clk 0:04:56.2]}
2... Bc5 {[%clk 0:04:52.9]} 3. Nf3 {[%clk 0:04:54.4]} 3... Nc6 {[%clk
0:04:46.6]} 4. Nc3 {[%clk 0:04:49.5]} 4... Nf6 {[%clk 0:04:16.4]} 5. Ng5 {[%clk
0:04:46.9]} 5... d5 {[%clk 0:04:11]} 6. exd5 {[%clk 0:04:45.4]} 6... Nd4 {[%clk
0:04:05.9]} 7. O-O {[%clk 0:04:38.6]} 7... O-O {[%clk 0:04:02.4]} 8. d6 {[%clk
0:04:34]} 8... cxd6 {[%clk 0:03:58.8]} 9. Nge4 {[%clk 0:04:32.8]} 9... Nxe4
{[%clk 0:03:54.8]} 10. Nxe4 {[%clk 0:04:31.6]} 10... Bd7 {[%clk 0:03:45.6]} 11.
Ng5 {[%clk 0:04:29.7]} 11... Be6 {[%clk 0:03:37.3]} 12. Nxe6 {[%clk 0:04:27.8]}
12... Nxe6 {[%clk 0:03:33.8]} 13. Bxe6 {[%clk 0:04:25.8]} 13... fxe6 {[%clk
0:03:32.3]} 14. Qe2 {[%clk 0:04:24.5]} 14... Bb6 {[%clk 0:03:23.6]} 15. Re1
{[%clk 0:04:20.6]} 15... d5 {[%clk 0:03:20.4]} 16. d3 {[%clk 0:04:19]} 16... d4
{[%clk 0:03:18.6]} 17. c4 {[%clk 0:04:17.5]} 17... dxc3 {[%clk 0:03:15.8]} 18.
bxc3 {[%clk 0:04:16]} 18... e4 {[%clk 0:03:07.7]} 19. Qxe4 {[%clk 0:04:14.5]}
19... Qe8 {[%clk 0:03:01.3]} 20. Qxb7 {[%clk 0:04:12.5]} 20... Qf7 {[%clk
0:02:53.7]} 21. Qe4 {[%clk 0:04:07.5]} 21... Qxf2+ {[%clk 0:02:50.7]} 22. Kh1
{[%clk 0:04:02.7]} 22... Rf4 {[%clk 0:02:38.6]} 23. Qxe6+ {[%clk 0:03:59.1]}
23... Kh8 {[%clk 0:02:28.4]} 24. Bxf4 {[%clk 0:03:57.5]} 24... Qxf4 {[%clk
0:02:21.9]} 25. Re4 {[%clk 0:03:52.6]} 25... Qf2 {[%clk 0:02:13.6]} 26. g4
{[%clk 0:03:47.9]} 26... Qf3# {[%clk 0:02:07.9]} 0-1

[Event "Live Chess"]
[Site "Chess.com"]
[Date "2023.05.20"]
[Round "-"]
[White "Nazarenko_vital"]
[Black "SimpleHarmonic1"]
[Result "1-0"]
[WhiteElo "1603"]
[BlackElo "2044"]
[TimeControl "300"]
[EndTime "10:23:46 PDT"]
[Termination "Nazarenko_vital won by resignation"]

1. e4 {[%clk 0:04:57.4]} 1... d6 {[%clk 0:04:58.3]} 2. d4 {[%clk 0:04:55.8]}
2... Nf6 {[%clk 0:04:57.3]} 3. Nd2 {[%clk 0:04:53.2]} 3... g6 {[%clk 0:04:56.4]}
4. Bd3 {[%clk 0:04:47.9]} 4... Bg7 {[%clk 0:04:54.6]} 5. c3 {[%clk 0:04:46.7]}
5... O-O {[%clk 0:04:54]} 6. Ne2 {[%clk 0:04:44.5]} 6... e5 {[%clk 0:04:48.6]}
7. d5 {[%clk 0:04:41.1]} 7... c6 {[%clk 0:04:44.3]} 8. c4 {[%clk 0:04:37.8]}
8... c5 {[%clk 0:04:43]} 9. O-O {[%clk 0:04:33.7]} 9... Ne8 {[%clk 0:04:38]} 10.
f4 {[%clk 0:04:24.2]} 10... exf4 {[%clk 0:04:31.3]} 11. Rxf4 {[%clk 0:04:22.2]}
11... Be5 {[%clk 0:04:28.6]} 12. Rf1 {[%clk 0:04:14.7]} 12... Bg4 {[%clk
0:04:27]} 13. h3 {[%clk 0:04:10.5]} 13... Qh4 {[%clk 0:04:15.5]} 14. Qe1 {[%clk
0:03:36.9]} 14... Qxe1 {[%clk 0:04:04.2]} 15. Rxe1 {[%clk 0:03:33.9]} 15... Bxe2
{[%clk 0:04:04.1]} 16. Rxe2 {[%clk 0:03:31.4]} 16... Bd4+ {[%clk 0:04:04]} 17.
Kh1 {[%clk 0:03:27.5]} 17... Nd7 {[%clk 0:04:03.9]} 18. Nf3 {[%clk 0:03:21.6]}
18... Ng7 {[%clk 0:03:59.6]} 19. Nxd4 {[%clk 0:03:18.3]} 19... cxd4 {[%clk
0:03:58.5]} 20. Bf4 {[%clk 0:03:13.6]} 20... Ne5 {[%clk 0:03:56.5]} 21. Rd1
{[%clk 0:02:58.4]} 21... Nh5 {[%clk 0:03:39]} 22. Bh2 {[%clk 0:02:40.9]} 22...
Rac8 {[%clk 0:03:36.2]} 23. b3 {[%clk 0:02:32.9]} 23... b5 {[%clk 0:03:22.7]}
24. Ree1 {[%clk 0:02:13.1]} 24... bxc4 {[%clk 0:03:10.9]} 25. Bxc4 {[%clk
0:02:12]} 25... Nxc4 {[%clk 0:03:08.3]} 26. bxc4 {[%clk 0:02:10.4]} 26... Rxc4
{[%clk 0:03:05]} 27. Bxd6 {[%clk 0:02:07.6]} 27... Re8 {[%clk 0:03:00.2]} 28.
Bh2 {[%clk 0:02:05.6]} 28... d3 {[%clk 0:02:47.8]} 29. Rxd3 {[%clk 0:02:01.5]}
29... Rcxe4 {[%clk 0:02:45.5]} 30. Rxe4 {[%clk 0:01:57.7]} 30... Rxe4 {[%clk
0:02:45.4]} 31. d6 {[%clk 0:01:54.4]} 31... Re1+ {[%clk 0:02:31.6]} 32. Bg1
{[%clk 0:01:51.1]} 32... Re8 {[%clk 0:02:25.4]} 33. Bxa7 {[%clk 0:01:49.1]}
33... Rd8 {[%clk 0:02:23]} 34. Bb6 {[%clk 0:01:22.7]} 34... Rd7 {[%clk
0:02:16.6]} 35. a4 {[%clk 0:01:21.3]} 35... Nf4 {[%clk 0:02:11.7]} 36. Rd2
{[%clk 0:01:17.7]} 36... Ne6 {[%clk 0:02:09.7]} 37. a5 {[%clk 0:01:14.2]} 37...
Nd8 {[%clk 0:01:39.3]} 38. Bxd8 {[%clk 0:01:09.8]} 38... Rxd8 {[%clk 0:01:39.2]}
39. d7 {[%clk 0:01:07.6]} 39... Kf8 {[%clk 0:01:37.5]} 40. a6 {[%clk 0:01:03.6]}
40... Ke7 {[%clk 0:01:36.7]} 41. a7 {[%clk 0:01:02.5]} 41... f6 {[%clk
0:01:21.2]} 42. Re2+ {[%clk 0:00:58.1]} 42... Kd6 {[%clk 0:01:10.3]} 43. Re8
{[%clk 0:00:53.7]} 43... Kxd7 {[%clk 0:01:00.2]} 44. Rxd8+ {[%clk 0:00:52]}
44... Kxd8 {[%clk 0:01:00.1]} 1-0

[Event "Live Chess"]
[Site "Chess.com"]
[Date "2023.05.20"]
[Round "-"]
[White "Greenbecker"]
[Black "JackCheetham1"]
[Result "0-1"]
[WhiteElo "1647"]
[BlackElo "1699"]
[TimeControl "300"]
[EndTime "10:23:46 PDT"]
[Termination "JackCheetham1 won by resignation"]

1. e4 {[%clk 0:04:57.7]} 1... d6 {[%clk 0:04:57.9]} 2. d4 {[%clk 0:04:56.1]}
2... Nf6 {[%clk 0:04:57.3]} 3. Bd3 {[%clk 0:04:55.2]} 3... g6 {[%clk 0:04:56.5]}
4. Nf3 {[%clk 0:04:54.7]} 4... Bg7 {[%clk 0:04:54.9]} 5. O-O {[%clk 0:04:54.2]}
5... Bg4 {[%clk 0:04:54.4]} 6. Re1 {[%clk 0:04:53.4]} 6... Nc6 {[%clk
0:04:53.2]} 7. c3 {[%clk 0:04:51]} 7... e5 {[%clk 0:04:44.1]} 8. d5 {[%clk
0:04:48.5]} 8... Ne7 {[%clk 0:04:36.3]} 9. Bg5 {[%clk 0:04:46.7]} 9... h6 {[%clk
0:04:34.2]} 10. Be3 {[%clk 0:04:45.2]} 10... O-O {[%clk 0:04:30.3]} 11. Qd2
{[%clk 0:04:43.7]} 11... Kh7 {[%clk 0:04:29.9]} 12. Be2 {[%clk 0:04:41.4]} 12...
Nxe4 {[%clk 0:04:15.2]} 13. Qd3 {[%clk 0:04:35.8]} 13... f5 {[%clk 0:04:09.4]}
14. h3 {[%clk 0:04:27.4]} 14... Bxf3 {[%clk 0:03:48.6]} 15. Bxf3 {[%clk
0:04:26.3]} 15... Nf6 {[%clk 0:03:40.9]} 16. c4 {[%clk 0:04:03]} 16... e4 {[%clk
0:03:39.2]} 17. Bxe4 {[%clk 0:04:01.8]} 17... fxe4 {[%clk 0:03:33.9]} 18. Qe2
{[%clk 0:03:58.2]} 18... Nf5 {[%clk 0:03:32.2]} 19. Bd4 {[%clk 0:03:54.9]} 19...
Nxd4 {[%clk 0:03:30.3]} 0-1

[Event "Live Chess"]
[Site "Chess.com"]
[Date "2023.05.20"]
[Round "-"]
[White "MaximKris"]
[Black "lightningorderyt"]
[Result "1-0"]
[WhiteElo "1850"]
[BlackElo "522"]
[TimeControl "300"]
[EndTime "10:23:47 PDT"]
[Termination "MaximKris won by resignation"]

1. e4 {[%clk 0:04:58.8]} 1... c6 {[%clk 0:04:59]} 2. Nf3 {[%clk 0:04:57.6]} 2...
d5 {[%clk 0:04:58]} 3. Nc3 {[%clk 0:04:57.3]} 3... Nf6 {[%clk 0:04:53]} 4. exd5
{[%clk 0:04:55.3]} 4... cxd5 {[%clk 0:04:51.1]} 5. d4 {[%clk 0:04:55.2]} 5...
Nc6 {[%clk 0:04:48.8]} 6. Bf4 {[%clk 0:04:54.6]} 6... Bf5 {[%clk 0:04:46]} 7.
Bb5 {[%clk 0:04:53.8]} 7... e6 {[%clk 0:04:36.4]} 8. O-O {[%clk 0:04:51.7]} 8...
Bd6 {[%clk 0:04:28.8]} 9. Bxd6 {[%clk 0:04:44.9]} 9... Qxd6 {[%clk 0:04:26.4]}
10. Ne5 {[%clk 0:04:44.4]} 10... O-O {[%clk 0:04:18.8]} 11. Bxc6 {[%clk
0:04:43.4]} 11... bxc6 {[%clk 0:04:17.8]} 12. Na4 {[%clk 0:04:43.1]} 12... Rac8
{[%clk 0:03:58.9]} 13. Nc5 {[%clk 0:04:36.9]} 13... Ne4 {[%clk 0:03:10.4]} 14.
Nxe4 {[%clk 0:04:32.7]} 14... Bxe4 {[%clk 0:03:10.3]} 15. f3 {[%clk 0:04:27.3]}
15... Bf5 {[%clk 0:03:07.3]} 16. Re1 {[%clk 0:04:22.4]} 16... f6 {[%clk
0:03:03.7]} 17. Nd3 {[%clk 0:04:16.7]} 17... Qb8 {[%clk 0:02:52.4]} 18. b3
{[%clk 0:04:13]} 18... h5 {[%clk 0:02:44.3]} 19. Nc5 {[%clk 0:04:08]} 19... Qf4
{[%clk 0:02:29.9]} 20. Nxe6 {[%clk 0:04:02.2]} 20... Bxe6 {[%clk 0:02:18.3]} 21.
Rxe6 {[%clk 0:04:02.1]} 21... Rfe8 {[%clk 0:02:07.8]} 22. g3 {[%clk 0:03:39.4]}
22... Qg5 {[%clk 0:02:01.3]} 23. Qe2 {[%clk 0:03:34.9]} 23... Rxe6 {[%clk
0:01:51.7]} 24. Qxe6+ {[%clk 0:03:34.8]} 24... Kh8 {[%clk 0:01:49.7]} 25. Qxc8+
{[%clk 0:03:29.2]} 25... Kh7 {[%clk 0:01:47.9]} 26. Qe6 {[%clk 0:03:26.9]} 26...
h4 {[%clk 0:01:40.8]} 27. Re1 {[%clk 0:03:24.8]} 27... hxg3 {[%clk 0:01:37.9]}
28. Qh3+ {[%clk 0:03:23.5]} 28... Kg6 {[%clk 0:01:30.3]} 29. Qxg3 {[%clk
0:03:22.2]} 29... Qxg3+ {[%clk 0:01:27.2]} 30. hxg3 {[%clk 0:03:22.1]} 1-0

[Event "Live Chess"]
[Site "Chess.com"]
[Date "2023.05.20"]
[Round "-"]
[White "ramses-IIG"]
[Black "djw60"]
[Result "0-1"]
[WhiteElo "759"]
[BlackElo "2139"]
[TimeControl "300"]
[EndTime "10:23:49 PDT"]
[Termination "djw60 won by checkmate"]

1. e4 {[%clk 0:04:58.8]} 1... e5 {[%clk 0:04:57.7]} 2. Nf3 {[%clk 0:04:58.7]}
2... Nc6 {[%clk 0:04:55.5]} 3. Bc4 {[%clk 0:04:56.5]} 3... Nf6 {[%clk
0:04:53.6]} 4. Ng5 {[%clk 0:04:51.9]} 4... d5 {[%clk 0:04:52]} 5. exd5 {[%clk
0:04:50]} 5... Na5 {[%clk 0:04:51.4]} 6. Bb5+ {[%clk 0:04:40.1]} 6... c6 {[%clk
0:04:50.4]} 7. dxc6 {[%clk 0:04:37]} 7... bxc6 {[%clk 0:04:50.3]} 8. Ba4 {[%clk
0:04:31.5]} 8... h6 {[%clk 0:04:44.9]} 9. Nf3 {[%clk 0:04:28.2]} 9... e4 {[%clk
0:04:42.7]} 10. Ne5 {[%clk 0:04:26.6]} 10... Qd4 {[%clk 0:04:08]} 11. Nxc6
{[%clk 0:04:17.8]} 11... Qxa4 {[%clk 0:04:06]} 12. Nc3 {[%clk 0:04:04.9]} 12...
Qxc6 {[%clk 0:04:03.6]} 13. d3 {[%clk 0:03:56.4]} 13... Bb4 {[%clk 0:03:57.7]}
14. O-O {[%clk 0:03:50]} 14... O-O {[%clk 0:03:49.3]} 15. Bd2 {[%clk 0:03:42.4]}
15... exd3 {[%clk 0:03:45.7]} 16. cxd3 {[%clk 0:03:18.8]} 16... Bb7 {[%clk
0:03:44.2]} 17. f3 {[%clk 0:03:14.4]} 17... Bxc3 {[%clk 0:03:07.8]} 18. Bxc3
{[%clk 0:03:11.8]} 18... Qb6+ {[%clk 0:03:06.8]} 19. Kh1 {[%clk 0:03:01.3]}
19... Nd5 {[%clk 0:03:05.8]} 20. Bd2 {[%clk 0:02:40.6]} 20... Nc6 {[%clk
0:03:03]} 21. b3 {[%clk 0:02:31.1]} 21... Ne3 {[%clk 0:02:57.8]} 22. Bxe3 {[%clk
0:02:27.6]} 22... Qxe3 {[%clk 0:02:57.7]} 23. Re1 {[%clk 0:02:05.4]} 23... Qd4
{[%clk 0:02:56.3]} 24. Re4 {[%clk 0:02:01.2]} 24... Qd6 {[%clk 0:02:51.4]} 25.
d4 {[%clk 0:01:45.8]} 25... Rad8 {[%clk 0:02:49.2]} 26. Rh4 {[%clk 0:01:32.6]}
26... Nxd4 {[%clk 0:02:44.9]} 27. Qe1 {[%clk 0:01:31.8]} 27... Rfe8 {[%clk
0:02:35.7]} 28. Qc3 {[%clk 0:01:30.1]} 28... Nf5 {[%clk 0:02:27.5]} 29. Rh5
{[%clk 0:01:21.8]} 29... Qd1+ {[%clk 0:02:23.9]} 30. Qe1 {[%clk 0:01:17.3]}
30... Rxe1# {[%clk 0:02:21.8]} 0-1